bitfinex/quotes_BTCUSD_20240927
["timestamp","ask_amount","ask_price","bid_price","bid_amount"]
[1727413906013,0.022827,65456.0,65455.0,1.60612144]
[1727413906446,0.022827,65456.0,65455.0,1.35759821]
[1727413906652,0.01875391,65456.0,65455.0,1.35759821]
[1727413906861,0.01875391,65456.0,65455.0,1.68172144]
[1727413907089,0.01875391,65456.0,65455.0,1.60649607]
[1727413907311,0.11035391,65456.0,65455.0,1.2026849]
[1727413907518,0.11035391,65456.0,65455.0,1.2006849]
[1727413907711,0.11035391,65456.0,65455.0,0.30340378]
[1727413907987,0.18905391,65456.0,65455.0,0.30340378]
[1727413908229,0.20367435,65456.0,65455.0,0.30340378]
[1727413908449,0.20367435,65456.0,65455.0,0.36203936]
[1727413908696,0.20367435,65456.0,65455.0,0.20735135]
[1727413909688,0.20367435,65456.0,65455.0,0.36203936]
[1727413911903,0.12497435,65456.0,65455.0,0.36403936]
[1727413912186,0.12497435,65456.0,65455.0,0.20935135]
[1727413912187,0.11035391,65456.0,65455.0,0.20935135]
[1727413912376,0.11035391,65456.0,65455.0,0.26933099]
[1727413912711,0.01875391,65456.0,65455.0,0.26933099]
[1727413912943,0.01875391,65456.0,65455.0,0.36933099]
[1727413913170,0.01875391,65456.0,65455.0,1.163557]
[1727413914585,0.01875391,65456.0,65455.0,1.11263565]
[1727413914828,0.01875391,65456.0,65455.0,0.36354439]
[1727413915523,0.01875391,65456.0,65455.0,1.16082551]
[1727413915988,0.01875391,65456.0,65455.0,0.36354439]
[1727413916242,0.01875391,65456.0,65455.0,0.36355047]
[1727413917891,0.01875391,65456.0,65455.0,0.38268189]
[1727413918381,0.01875391,65456.0,65455.0,0.36355047]
[1727413919174,0.01875391,65456.0,65455.0,0.38268158]
[1727413919889,0.01875391,65456.0,65455.0,0.33448564]
[1727413920125,0.01875391,65456.0,65455.0,0.38275981]
[1727413921421,0.01875391,65456.0,65455.0,0.36366654]
[1727413921644,0.01875391,65456.0,65455.0,1.41626718]
[1727413921898,0.000827,65461.0,65456.0,0.154774]
[1727413922137,0.000827,65461.0,65456.0,1.31563418]
[1727413922389,0.000827,65461.0,65456.0,1.33171118]
[1727413923340,0.013827,65457.0,65456.0,1.33271118]
[1727413923595,0.000827,65461.0,65460.0,0.254765]
[1727413923831,0.000827,65461.0,65460.0,1.59854079]
[1727413924087,0.000827,65461.0,65460.0,1.347519]
[1727413924785,0.000827,65461.0,65460.0,1.59595512]
[1727413925067,0.000827,65461.0,65460.0,1.59595111]
[1727413925319,0.000827,65461.0,65460.0,1.59595148]
[1727413925801,0.002827,65461.0,65460.0,1.34807951]
[1727413927559,0.002827,65461.0,65460.0,1.33231184]
[1727413928672,0.000827,65462.0,65461.0,0.002]
[1727413928987,0.000827,65462.0,65461.0,0.53808223]
[1727413929185,0.000827,65462.0,65461.0,0.53502772]
[1727413930505,0.004827,65462.0,65461.0,0.53502772]
[1727413932963,0.004827,65462.0,65461.0,1.41320884]
[1727413933867,0.0813,65482.0,65473.0,0.252734]
[1727413934077,0.0976445,65474.0,65473.0,0.27355157]
[1727413934296,0.0976445,65474.0,65473.0,0.27660587]
[1727413934509,0.0976445,65474.0,65473.0,0.27355157]
[1727413935169,0.1036445,65474.0,65473.0,0.42890386]
[1727413935409,0.1036445,65474.0,65473.0,0.41008629]
[1727413935627,0.1036445,65474.0,65473.0,0.42864856]
[1727413936068,0.1036445,65474.0,65473.0,0.27429627]
[1727413936567,0.1036445,65474.0,65473.0,0.42859836]
[1727413936769,0.1036445,65474.0,65473.0,0.42959836]
[1727413937016,0.1036445,65474.0,65473.0,0.27529627]
[1727413937941,0.1036445,65474.0,65473.0,0.4295817]
[1727413938653,0.1036445,65474.0,65473.0,0.27529627]
[1727413941727,0.0098445,65474.0,65473.0,0.43058421]
[1727413942151,0.0098445,65474.0,65473.0,0.60399721]
[1727413942408,0.0098445,65474.0,65473.0,0.63369684]
[1727413942872,0.0098445,65474.0,65473.0,0.43058421]
[1727413943074,0.0098445,65474.0,65473.0,0.47940902]
[1727413943311,0.0098445,65474.0,65473.0,0.53611391]
[1727413943538,0.0098445,65474.0,65473.0,0.47940902]
[1727413945562,0.0106715,65474.0,65473.0,0.47940902]
[1727413946884,0.0106715,65474.0,65473.0,0.63368629]
[1727413947313,0.0106715,65474.0,65473.0,0.47956716]
[1727413947987,0.0106715,65474.0,65473.0,0.63364001]
[1727413948204,0.0106715,65474.0,65473.0,0.53628396]
[1727413948650,0.0106715,65474.0,65473.0,0.63363447]
[1727413949091,0.0106715,65474.0,65473.0,0.47956716]
[1727413952612,0.0106715,65474.0,65473.0,0.53632654]
[1727413953733,0.0106715,65474.0,65473.0,0.50653927]
[1727413953951,0.0106715,65474.0,65473.0,0.53635139]
[1727413954393,0.0106715,65474.0,65473.0,0.69039823]
[1727413954656,0.0106715,65474.0,65473.0,0.53635139]
[1727413955309,0.0106715,65474.0,65473.0,0.69040251]
[1727413956253,0.0106715,65474.0,65473.0,0.53635139]
[1727413956939,0.1051715,65474.0,65473.0,0.69045673]
[1727413957441,0.3399035,65474.0,65473.0,0.06905423]
[1727413957675,0.247237,65472.0,65467.0,0.20236873]
[1727413957901,0.1765,65473.0,65470.0,0.13713849]
[1727413958121,0.02917813,65474.0,65468.0,0.13713849]
[1727413958122,0.1765,65472.0,65468.0,0.13713849]
[1727413958344,0.1765,65471.0,65468.0,0.13713849]
[1727413958565,0.1765,65473.0,65469.0,0.13713849]
[1727413958782,0.1765,65472.0,65469.0,0.13715413]
[1727413958998,0.1765,65473.0,65469.0,0.13715413]
[1727413959211,0.1765,65473.0,65465.0,0.305506]
[1727413959212,0.1765,65471.0,65470.0,0.13815413]
[1727413959463,0.1765,65471.0,65469.0,0.13715413]
[1727413959678,0.0945,65470.0,65469.0,0.13715413]
[1727413959895,0.0945,65470.0,65469.0,0.13815413]
[1727413961303,0.10247479,65470.0,65469.0,0.13815413]
[1727413961709,0.11147479,65470.0,65469.0,0.13915413]
[1727413961906,0.11147479,65470.0,65469.0,0.13815413]
[1727413961907,0.12357238,65470.0,65469.0,0.13815413]
[1727413962552,0.27631338,65470.0,65469.0,0.13815413]
[1727413962742,0.13157238,65470.0,65469.0,0.13915413]
[1727413962866,0.28431338,65470.0,65469.0,0.13915413]
[1727413964140,0.27531338,65470.0,65469.0,0.13813727]
[1727413964574,0.28031338,65470.0,65469.0,0.13913727]
[1727413965002,0.12757238,65470.0,65469.0,0.13913727]
[1727413965413,0.27231338,65470.0,65469.0,0.13813727]
[1727413965618,0.28431338,65470.0,65469.0,0.13913727]
[1727413967075,0.28431338,65470.0,65469.0,0.13912193]
[1727413967327,0.28431338,65470.0,65469.0,0.002]
[1727413967477,0.28431338,65470.0,65469.0,0.13912768]
[1727413967687,0.27931338,65470.0,65469.0,0.13812768]
[1727413967910,0.26731338,65470.0,65469.0,0.001]
[1727413968143,0.27931338,65470.0,65469.0,0.13811965]
[1727413968375,0.29131338,65470.0,65469.0,0.002]
[1727413968601,0.29131338,65470.0,65469.0,0.13810687]
[1727413968602,0.27931338,65470.0,65469.0,0.13810687]
[1727413969036,0.29131338,65470.0,65469.0,0.13910687]
[1727413969464,0.26731338,65470.0,65469.0,0.13710687]
[1727413969653,0.26731338,65470.0,65468.0,0.13710687]
[1727413969871,0.29131338,65470.0,65469.0,0.13910687]
[1727413970090,0.36205312,65470.0,65469.0,0.14076087]
[1727413970293,0.36205312,65470.0,65469.0,0.003654]
[1727413970502,0.35005312,65470.0,65469.0,0.002654]
[1727413970917,0.36205312,65470.0,65469.0,0.002654]
[1727413971131,0.35005312,65470.0,65469.0,0.001654]
[1727413971342,0.33805312,65470.0,65469.0,0.001654]
[1727413971560,0.35005312,65470.0,65469.0,0.002654]
[1727413971779,0.33805312,65470.0,65469.0,0.001654]
[1727413971978,0.35005312,65470.0,65469.0,0.002654]
[1727413972409,0.43205312,65470.0,65469.0,0.002654]
[1727413973007,0.44405312,65470.0,65469.0,0.003654]
[1727413974155,0.37331338,65470.0,65469.0,0.003654]
[1727413974379,0.22057238,65470.0,65469.0,0.003654]
[1727413974606,0.22057238,65470.0,65469.0,0.156398]
[1727413975148,0.2005,65470.0,65469.0,0.156398]
[1727413975385,0.04384066,65470.0,65469.0,0.156398]
[1727413975619,0.04384066,65470.0,65469.0,0.36175931]
[1727413975850,0.024,65470.0,65469.0,0.35870336]
[1727413976101,0.024,65470.0,65469.0,0.35870521]
[1727413976780,0.024,65470.0,65469.0,0.156398]
[1727413977127,0.2005,65470.0,65469.0,0.156398]
[1727413977335,0.22044203,65470.0,65469.0,0.156398]
[1727413982007,0.13844203,65470.0,65469.0,0.156398]
[1727413982652,0.04394203,65470.0,65469.0,0.156398]
[1727413985569,0.14174203,65470.0,65469.0,0.156398]
[1727413986684,0.14174203,65470.0,65469.0,0.29345623]
[1727413987026,0.14174203,65470.0,65469.0,0.156398]
[1727413993661,0.14174203,65470.0,65469.0,0.003654]
[1727413993887,0.14174203,65470.0,65469.0,0.156398]
[1727413994112,0.1218,65470.0,65469.0,0.156398]
[1727413994322,0.14172651,65470.0,65469.0,0.156398]
[1727413994771,0.14172651,65470.0,65469.0,0.003654]
[1727413995461,0.14172651,65470.0,65469.0,0.156398]
[1727413996583,0.14172651,65470.0,65469.0,0.003654]
[1727413999590,0.14172651,65470.0,65469.0,0.20616818]
[1727413999835,0.14172651,65470.0,65469.0,0.35891218]
[1727414000675,0.1218,65470.0,65469.0,0.156398]
[1727414000885,0.14172651,65470.0,65469.0,0.156398]
[1727414004594,0.14172651,65470.0,65469.0,0.16904608]
[1727414005042,0.14172651,65470.0,65469.0,0.156398]
[1727414006129,0.14172651,65470.0,65469.0,0.16904767]
[1727414006353,0.14172651,65470.0,65469.0,0.18169723]
[1727414006570,0.14172651,65470.0,65469.0,0.16904767]
[1727414012322,0.24096901,65470.0,65469.0,0.01630367]
[1727414012765,0.21812651,65470.0,65469.0,0.003654]
[1727414026352,0.37086751,65470.0,65469.0,0.003654]
[1727414027145,0.21812651,65470.0,65469.0,0.003654]
[1727414027514,0.37086751,65470.0,65469.0,0.003654]
[1727414028041,0.21812651,65470.0,65469.0,0.003654]
[1727414032466,0.41089798,65470.0,65469.0,0.003654]
[1727414033129,0.41089798,65470.0,65469.0,0.2068264]
[1727414033370,0.43389798,65470.0,65469.0,0.2068264]
[1727414033602,0.43389798,65470.0,65462.0,0.001654]
[1727414033603,0.175746,65468.0,65467.0,0.13760551]
[1727414033831,0.175746,65468.0,65463.0,0.13760551]
[1727414033832,0.349155,65464.0,65463.0,0.13760551]
[1727414034042,0.175758,65463.0,65462.0,0.13925951]
[1727414034248,0.349158,65463.0,65462.0,0.13925951]
[1727414034464,0.36107957,65463.0,65462.0,0.001654]
[1727414035380,0.37507957,65463.0,65462.0,0.002654]
[1727414035592,0.47536053,65463.0,65462.0,0.001654]
[1727414036713,0.36107957,65463.0,65462.0,0.001654]
[1727414037140,0.38607957,65463.0,65462.0,0.001654]
[1727414037339,0.37407957,65463.0,65462.0,0.001654]
[1727414037991,0.38807957,65463.0,65462.0,0.001654]
[1727414038412,0.36107957,65463.0,65462.0,0.001654]
[1727414038854,0.38907957,65463.0,65462.0,0.001654]
[1727414039951,0.45585528,65463.0,65462.0,0.001654]
[1727414040211,0.38907957,65463.0,65462.0,0.001654]
[1727414040431,0.23632157,65463.0,65462.0,0.001654]
[1727414040651,0.38907957,65463.0,65462.0,0.001654]
[1727414041083,0.37507957,65463.0,65462.0,0.001654]
[1727414041523,0.37307957,65463.0,65462.0,0.001654]
[1727414041937,0.38507957,65463.0,65462.0,0.001654]
[1727414052034,0.38539435,65463.0,65462.0,0.001654]
[1727414054552,0.38539435,65463.0,65462.0,0.13899236]
[1727414055005,0.38539435,65463.0,65462.0,0.001654]
[1727414063691,0.38539435,65463.0,65462.0,0.13906247]
[1727414066894,0.38539435,65463.0,65462.0,0.13910911]
[1727414068575,0.38539435,65463.0,65462.0,0.001654]
[1727414069902,0.38539435,65463.0,65462.0,0.13913925]
[1727414070109,0.40934333,65463.0,65462.0,0.13913925]
[1727414070555,0.40934333,65463.0,65462.0,0.001654]
[1727414071217,0.40934333,65463.0,65462.0,0.1391507]
[1727414071426,0.40934333,65463.0,65462.0,0.001654]
[1727414071638,0.39734333,65463.0,65462.0,0.001654]
[1727414071843,0.48617746,65463.0,65462.0,0.001654]
[1727414072091,0.49717746,65463.0,65462.0,0.001654]
[1727414072359,0.50917746,65463.0,65462.0,0.001654]
[1727414072810,0.50917746,65463.0,65462.0,0.1391795]
[1727414073027,0.50917746,65463.0,65462.0,0.001654]
[1727414073455,0.50917746,65463.0,65462.0,0.11627098]
[1727414073678,0.50917746,65463.0,65462.0,0.001654]
[1727414073888,0.96745746,65463.0,65462.0,0.001654]
[1727414074101,0.96745746,65463.0,65462.0,0.07043118]
[1727414074338,0.95545746,65463.0,65462.0,0.001654]
[1727414074533,0.94445746,65463.0,65462.0,0.001654]
[1727414074746,0.95845746,65463.0,65462.0,0.001654]
[1727414074956,0.97245746,65463.0,65462.0,0.001654]
[1727414075194,0.94445746,65463.0,65462.0,0.04750337]
[1727414075423,0.94445746,65463.0,65462.0,0.04750342]
[1727414075651,0.95845746,65463.0,65462.0,0.04750342]
[1727414075876,0.93450848,65463.0,65462.0,0.04750342]
[1727414076087,0.93450848,65463.0,65462.0,0.001654]
[1727414077554,0.96006239,65463.0,65462.0,0.001654]
[1727414078014,0.93206239,65463.0,65462.0,0.001654]
[1727414078254,0.96006239,65463.0,65462.0,0.001654]
[1727414078477,0.94606239,65463.0,65462.0,0.001654]
[1727414078939,0.97001337,65463.0,65462.0,0.001654]
[1727414079597,0.98401337,65463.0,65462.0,0.001654]
[1727414080231,0.98401337,65463.0,65462.0,0.04750031]
[1727414080470,0.97001337,65463.0,65462.0,0.04750031]
[1727414080711,0.85517924,65463.0,65462.0,0.04750031]
[1727414080938,0.86917924,65463.0,65462.0,0.04750031]
[1727414081160,0.88317924,65463.0,65462.0,0.04750031]
[1727414081370,0.85517924,65463.0,65462.0,0.04750031]
[1727414081607,0.86917924,65463.0,65462.0,0.04750031]
[1727414081850,1.03119696,65463.0,65462.0,0.04750031]
[1727414082346,1.03119696,65463.0,65462.0,0.001654]
[1727414085617,1.01719696,65463.0,65462.0,0.001654]
[1727414087176,0.99324598,65463.0,65462.0,0.001654]
[1727414087376,1.00724598,65463.0,65462.0,0.001654]
[1727414087591,0.99324598,65463.0,65462.0,0.001654]
[1727414087807,0.97924598,65463.0,65462.0,0.001654]
[1727414088025,0.99324598,65463.0,65462.0,0.001654]
[1727414088475,1.00724598,65463.0,65462.0,0.001654]
[1727414088694,0.99324598,65463.0,65462.0,0.001654]
[1727414088926,1.00724598,65463.0,65462.0,0.001654]
[1727414089393,0.99324598,65463.0,65462.0,0.001654]
[1727414089633,1.00724598,65463.0,65462.0,0.001654]
[1727414090307,0.99324598,65463.0,65462.0,0.001654]
[1727414090526,1.01719745,65463.0,65462.0,0.001654]
[1727414090982,1.00319745,65463.0,65462.0,0.001654]
[1727414091176,1.01719745,65463.0,65462.0,0.001654]
[1727414091403,1.03119745,65463.0,65462.0,0.001654]
[1727414091856,1.01719745,65463.0,65462.0,0.001654]
[1727414092744,1.03119745,65463.0,65462.0,0.001654]
[1727414093674,1.01719745,65463.0,65462.0,0.001654]
[1727414093897,1.03919409,65463.0,65462.0,0.001654]
[1727414094105,1.02519409,65463.0,65462.0,0.001654]
[1727414094760,1.03919409,65463.0,65462.0,0.001654]
[1727414095173,1.02519409,65463.0,65462.0,0.001654]
[1727414095586,1.03919409,65463.0,65462.0,0.001654]
[1727414097346,0.8672249,65463.0,65462.0,0.001654]
[1727414098179,0.8392249,65463.0,65462.0,0.001654]
[1727414098389,0.8532249,65463.0,65462.0,0.001654]
[1727414098599,0.8672249,65463.0,65462.0,0.001654]
[1727414100546,0.89117565,65463.0,65462.0,0.001654]
[1727414100818,1.04139301,65463.0,65462.0,0.001654]
[1727414101038,1.02739301,65463.0,65462.0,0.001654]
[1727414101780,1.04139301,65463.0,65462.0,0.001654]
[1727414103126,1.02739301,65463.0,65462.0,0.001654]
[1727414103363,1.04139301,65463.0,65462.0,0.001654]
[1727414104079,1.02739301,65463.0,65462.0,0.001654]
[1727414104298,0.89117565,65463.0,65462.0,0.001654]
[1727414107905,0.8672249,65463.0,65462.0,0.001654]
[1727414108129,0.8392249,65463.0,65462.0,0.001654]
[1727414108659,0.8532249,65463.0,65462.0,0.001654]
[1727414109547,0.8672249,65463.0,65462.0,0.001654]
[1727414110021,0.8692249,65463.0,65462.0,0.001654]
[1727414110249,0.8672249,65463.0,65462.0,0.001654]
[1727414110526,1.01524719,65463.0,65462.0,0.001654]
[1727414111196,1.03919926,65463.0,65462.0,0.001654]
[1727414112584,1.04119926,65463.0,65462.0,0.001654]
[1727414112817,1.03919926,65463.0,65462.0,0.001654]
[1727414113052,3.61352426,65463.0,65462.0,0.001654]
[1727414113962,3.71352426,65463.0,65462.0,0.001654]
[1727414114413,3.69952426,65463.0,65462.0,0.001654]
[1727414114631,3.70152426,65463.0,65462.0,0.001654]
[1727414114887,3.68752426,65463.0,65462.0,0.001654]
[1727414115109,3.70152426,65463.0,65462.0,0.001654]
[1727414116026,3.71552426,65463.0,65462.0,0.001654]
[1727414116450,3.70152426,65463.0,65462.0,0.001654]
[1727414116917,3.71552426,65463.0,65462.0,0.001654]
[1727414117131,3.70152426,65463.0,65462.0,0.001654]
[1727414117549,3.69157219,65463.0,65462.0,0.001654]
[1727414119915,3.69157219,65463.0,65455.0,0.001654]
[1727414119916,0.254774,65456.0,65455.0,0.001654]
[1727414120149,5.1586435,65456.0,65455.0,0.001654]
[1727414120338,5.0568285,65456.0,65455.0,0.001654]
[1727414120769,4.78868395,65456.0,65455.0,0.001654]
[1727414120975,4.78868395,65456.0,65451.0,0.001654]
[1727414120976,0.002,65452.0,65451.0,0.001654]
[1727414121211,0.911263,65452.0,65451.0,0.001654]
[1727414121643,4.632027,65452.0,65451.0,0.001654]
[1727414121854,5.136763,65452.0,65451.0,0.001654]
[1727414122278,5.150763,65452.0,65451.0,0.001654]
[1727414122489,5.31888751,65452.0,65451.0,0.001654]
[1727414122934,4.45140651,65452.0,65451.0,0.001654]
[1727414123164,4.4673867,65452.0,65451.0,0.001654]
[1727414123880,4.47532843,65452.0,65451.0,0.001654]
[1727414124323,3.65689443,65452.0,65451.0,0.001654]
[1727414124535,3.08692143,65452.0,65451.0,0.001654]
[1727414124752,3.09034943,65452.0,65451.0,0.001654]
[1727414125382,3.07634943,65452.0,65451.0,0.001654]
[1727414126020,0.275811,65440.0,65439.0,0.001654]
[1727414126247,4.596094,65440.0,65439.0,0.001654]
[1727414126456,4.254138,65440.0,65439.0,0.001654]
[1727414126667,3.54598727,65440.0,65439.0,0.001654]
[1727414127114,3.56181603,65440.0,65439.0,0.001654]
[1727414127329,3.71620409,65440.0,65439.0,0.001654]
[1727414127539,3.74420409,65440.0,65439.0,0.001654]
[1727414127767,3.74620409,65440.0,65439.0,0.001654]
[1727414127975,3.75784362,65440.0,65439.0,0.001654]
[1727414128839,3.78180605,65440.0,65439.0,0.001654]
[1727414129666,3.76780605,65440.0,65439.0,0.001654]
[1727414129935,3.78180605,65440.0,65439.0,0.001654]
[1727414130377,3.76780605,65440.0,65439.0,0.001654]
[1727414130834,3.75380605,65440.0,65439.0,0.001654]
[1727414131272,3.78180605,65440.0,65439.0,0.001654]
[1727414131523,3.76780605,65440.0,65439.0,0.001654]
[1727414131960,3.78180605,65440.0,65439.0,0.001654]
[1727414133286,3.39426905,65440.0,65439.0,0.001654]
[1727414134214,2.99109405,65440.0,65439.0,0.001654]
[1727414134428,1.15099505,65440.0,65439.0,0.001654]
[1727414134643,3.39849905,65440.0,65439.0,0.001654]
[1727414135309,3.32094305,65440.0,65439.0,0.001654]
[1727414135793,3.32294305,65440.0,65439.0,0.001654]
[1727414136750,2.96347705,65440.0,65439.0,0.001654]
[1727414138366,2.97945724,65440.0,65439.0,0.001654]
[1727414152308,2.87545254,65440.0,65437.0,0.001654]
[1727414152528,0.450316,65438.0,65437.0,0.001654]
[1727414152758,5.15571544,65438.0,65437.0,0.001654]
[1727414153678,5.22715533,65438.0,65437.0,0.001654]
[1727414153896,5.22715533,65438.0,65424.0,0.001654]
[1727414153897,0.252846,65425.0,65424.0,0.001654]
[1727414154120,2.923627,65425.0,65424.0,0.001654]
[1727414154340,3.004967,65425.0,65424.0,0.001654]
[1727414154802,2.992302,65425.0,65424.0,0.001654]
[1727414155477,3.01626792,65425.0,65424.0,0.001654]
[1727414155683,3.1697806,65425.0,65424.0,0.001654]
[1727414155893,3.1837806,65425.0,65424.0,0.001654]
[1727414156325,3.1776102,65425.0,65424.0,0.001654]
[1727414156527,3.15364428,65425.0,65424.0,0.001654]
[1727414156788,3.18164428,65425.0,65424.0,0.001654]
[1727414157027,3.16764428,65425.0,65424.0,0.001654]
[1727414157256,3.19532217,65425.0,65424.0,0.001654]
[1727414157479,3.20670795,65425.0,65424.0,0.001654]
[1727414157904,3.19270795,65425.0,65424.0,0.001654]
[1727414158324,3.20670795,65425.0,65424.0,0.001654]
[1727414159400,3.19270795,65425.0,65424.0,0.001654]
[1727414159611,3.23067436,65425.0,65424.0,0.001654]
[1727414161958,2.37846836,65425.0,65424.0,0.001654]
[1727414163499,0.97249836,65425.0,65424.0,0.001654]
[1727414166682,1.14689836,65425.0,65424.0,0.001654]
[1727414166885,1.14689836,65425.0,65424.0,1e-06]
[1727414166886,1.19570466,65425.0,65424.0,1e-06]
[1727414167118,5.39723825,65425.0,65424.0,1e-06]
[1727414167794,5.38323825,65425.0,65424.0,1e-06]
[1727414168016,5.39723825,65425.0,65424.0,1e-06]
[1727414168231,5.38323825,65425.0,65424.0,1e-06]
[1727414168444,5.36923825,65425.0,65424.0,1e-06]
[1727414168623,5.40626328,65425.0,65424.0,1e-06]
[1727414168867,5.40826328,65425.0,65424.0,1e-06]
[1727414169090,5.35371373,65425.0,65424.0,1e-06]
[1727414169524,3.89078273,65425.0,65424.0,1e-06]
[1727414169737,3.90478273,65425.0,65424.0,1e-06]
[1727414169934,3.88750095,65425.0,65424.0,1e-06]
[1727414170292,3.89746926,65425.0,65424.0,1e-06]
[1727414170490,3.91146926,65425.0,65424.0,1e-06]
[1727414170898,3.88346926,65425.0,65424.0,1e-06]
[1727414171157,3.89746926,65425.0,65424.0,1e-06]
[1727414171361,3.91146926,65425.0,65424.0,1e-06]
[1727414171682,3.89746926,65425.0,65424.0,1e-06]
[1727414172004,3.91146926,65425.0,65424.0,1e-06]
[1727414173543,0.252872,65414.0,65413.0,0.001656]
[1727414173764,0.90624186,65414.0,65413.0,0.001656]
[1727414174001,0.90824186,65414.0,65413.0,0.001656]
[1727414174203,5.17369414,65414.0,65413.0,0.001656]
[1727414175068,5.18769414,65414.0,65413.0,0.001656]
[1727414175442,5.32011011,65414.0,65413.0,0.001656]
[1727414175663,5.34311011,65414.0,65413.0,0.001656]
[1727414175880,5.39191641,65414.0,65413.0,0.001656]
[1727414176137,5.39191641,65414.0,65395.0,0.04581639]
[1727414176138,0.175914,65396.0,65395.0,0.04581639]
[1727414176360,0.175923,65392.0,65391.0,0.04581639]
[1727414176581,0.175926,65391.0,65390.0,0.12701639]
[1727414176805,0.175926,65391.0,65390.0,0.0812]
[1727414177033,0.76055324,65391.0,65390.0,0.0812]
[1727414177483,0.76055324,65391.0,65389.0,0.04747039]
[1727414177484,0.175928,65390.0,65389.0,0.001654]
[1727414177705,4.814426,65390.0,65389.0,0.001654]
[1727414177924,4.82212628,65390.0,65389.0,0.001654]
[1727414178143,4.97851434,65390.0,65389.0,0.001654]
[1727414178378,5.00249346,65390.0,65389.0,0.001654]
[1727414178623,4.97851434,65390.0,65389.0,0.001654]
[1727414179081,5.00651434,65390.0,65389.0,0.001654]
[1727414179269,5.01823987,65390.0,65389.0,0.001654]
[1727414180169,4.99023987,65390.0,65389.0,0.001654]
[1727414180636,5.01823987,65390.0,65389.0,0.001654]
[1727414180853,5.00423987,65390.0,65389.0,0.001654]
[1727414181316,5.01823987,65390.0,65389.0,0.001654]
[1727414181541,4.99023987,65390.0,65389.0,0.001654]
[1727414181967,5.04222056,65390.0,65389.0,0.001654]
[1727414182418,0.7826145,65390.0,65389.0,0.001654]
[1727414183303,0.75688897,65390.0,65389.0,0.001654]
[1727414183484,0.74288897,65390.0,65389.0,0.001654]
[1727414183733,0.77088897,65390.0,65389.0,0.001654]
[1727414184177,0.75688897,65390.0,65389.0,0.001654]
[1727414184395,0.78488897,65390.0,65389.0,0.001654]
[1727414184608,0.80788897,65390.0,65389.0,0.001654]
[1727414185522,0.83327833,65390.0,65389.0,0.001654]
[1727414186160,0.80929764,65390.0,65389.0,0.001654]
[1727414187024,0.78390828,65390.0,65389.0,0.001654]
[1727414187233,0.79665653,65390.0,65389.0,0.001654]
[1727414189404,0.82063548,65390.0,65389.0,0.001654]
[1727414189618,2.61006448,65390.0,65389.0,0.001654]
[1727414194988,3.26946448,65390.0,65389.0,0.001654]
[1727414195415,3.40977754,65390.0,65389.0,0.001654]
[1727414196266,3.40722584,65390.0,65389.0,0.001654]
[1727414196477,3.42122584,65390.0,65389.0,0.001654]
[1727414196684,3.47012584,65390.0,65389.0,0.001654]
[1727414197122,3.48412584,65390.0,65389.0,0.001654]
[1727414197804,3.30539284,65390.0,65389.0,0.001654]
[1727414198012,3.29139284,65390.0,65389.0,0.001654]
[1727414198238,3.31939284,65390.0,65389.0,0.001654]
[1727414198457,3.30794454,65390.0,65389.0,0.001654]
[1727414200071,3.29272154,65390.0,65389.0,0.001654]
[1727414205605,1.03992354,65390.0,65389.0,0.001654]
[1727414206037,2.91061548,65390.0,65389.0,0.001654]
[1727414206468,2.37829348,65390.0,65389.0,0.001654]
[1727414206674,0.80663548,65390.0,65389.0,0.001654]
[1727414207744,0.78265653,65390.0,65389.0,0.001654]
[1727414209725,0.68265653,65390.0,65389.0,0.001654]
[1727414212322,0.70663384,65390.0,65389.0,0.001654]
[1727414214166,0.84006404,65390.0,65389.0,0.001654]
[1727414214999,0.85150399,65390.0,65389.0,0.001654]
[1727414215234,0.82752668,65390.0,65389.0,0.001654]
[1727414215700,0.81608673,65390.0,65389.0,0.001654]
[1727414217272,0.68265653,65390.0,65389.0,0.001654]
[1727414218556,0.70663412,65390.0,65389.0,0.001654]
[1727414219679,0.68265653,65390.0,65389.0,0.001654]
[1727414222362,0.68265653,65390.0,65389.0,0.04733022]
[1727414222587,0.68265653,65390.0,65389.0,0.001654]
[1727414222814,0.70663387,65390.0,65389.0,0.04751221]
[1727414223341,0.70663387,65390.0,65389.0,0.001654]
[1727414223570,0.70663387,65390.0,65389.0,0.04751895]
[1727414224233,0.68265653,65390.0,65389.0,0.04751895]
[1727414224468,0.68265653,65390.0,65389.0,0.001654]
[1727414224691,0.68265653,65390.0,65389.0,0.04751895]
[1727414225364,0.68265653,65390.0,65389.0,0.001654]
[1727414225802,0.68265653,65390.0,65389.0,0.04753119]
[1727414226254,0.821799,65390.0,65389.0,0.001654]
[1727414227172,0.8457764,65390.0,65389.0,0.001654]
[1727414228100,0.8457764,65390.0,65389.0,0.047577]
[1727414228322,0.8457764,65390.0,65389.0,0.09349988]
[1727414228529,0.821799,65390.0,65389.0,0.001654]
[1727414228964,1.397513,65390.0,65389.0,0.001654]
[1727414231560,1.42149042,65390.0,65389.0,0.001654]
[1727414232547,1.42149042,65390.0,65389.0,0.07057985]
[1727414232769,1.42149042,65390.0,65389.0,0.001654]
[1727414234239,1.42149042,65390.0,65389.0,0.07057639]
[1727414235244,2.59902442,65390.0,65389.0,0.07057639]
[1727414238516,2.59902442,65390.0,65389.0,0.07057749]
[1727414240023,2.45988195,65390.0,65389.0,0.07057749]
[1727414240227,2.42760295,65390.0,65389.0,0.07057749]
[1727414242210,0.68363395,65390.0,65389.0,0.11652648]
[1727414242459,0.68363395,65390.0,65389.0,0.11652115]
[1727414242670,0.68363395,65390.0,65389.0,0.001654]
[1727414243506,0.70663395,65390.0,65389.0,0.001654]
[1727414245771,0.70663395,65390.0,65389.0,0.11651917]
[1727414245988,0.70663395,65390.0,65389.0,0.001654]
[1727414246472,0.70663395,65390.0,65389.0,0.11651786]
[1727414247358,0.70663395,65390.0,65389.0,0.001654]
[1727414248657,0.70663395,65390.0,65389.0,0.11651691]
[1727414249306,0.70663395,65390.0,65389.0,0.001654]
[1727414251958,0.70663395,65390.0,65389.0,0.11651654]
[1727414252168,0.70663395,65390.0,65389.0,0.001654]
[1727414254126,0.50672853,65390.0,65389.0,0.53770929]
[1727414254363,0.50672853,65390.0,65389.0,0.334184]
[1727414254811,0.50672853,65390.0,65389.0,0.336184]
[1727414255024,0.45828,65390.0,65389.0,0.334184]
[1727414255470,0.49261235,65390.0,65389.0,0.334184]
[1727414255916,0.49261235,65390.0,65389.0,0.181254]
[1727414256122,0.47861235,65390.0,65389.0,0.334184]
[1727414256539,0.49261235,65390.0,65389.0,0.334184]
[1727414256925,0.47861235,65390.0,65389.0,0.334184]